Workbook

Sheet Sheet1
B1: Your regular magic square…
B2: 32 | C2: 41 | D2: 43 | E2: 3 | F2: 12 | G2: 14 | H2: 23
B3: 40 | C3: 42 | D3: 2 | E3: 11 | F3: 20 | G3: 22 | H3: 31
B4: 48 | C4: 1 | D4: 10 | E4: 19 | F4: 21 | G4: 30 | H4: 39
B5: 0 | C5: 9 | D5: 18 | E5: 27 | F5: 29 | G5: 38 | H5: 49
B6: 8 | C6: 17 | D6: 26 | E6: 28 | F6: 37 | G6: 46 | H6: 6
B7: 16 | C7: 25 | D7: 34 | E7: 36 | F7: 45 | G7: 5 | H7: 7
B8: 24 | C8: 33 | D8: 35 | E8: 44 | F8: 4 | G8: 13 | H8: 15
H15: 23 | O15: 23
G16: 14 | H16: 31 | N16: 14 | O16: 31
F17: 12 | G17: 22 | H17: 39 | M17: 12 | N17: 22 | O17: 39
E18: 3 | F18: 20 | G18: 30 | H18: 49 | L18: 3 | M18: 20 | N18: 30 | O18: 49
D19: 43 | E19: 11 | F19: 21 | G19: 38 | H19: 6 | K19: 43 | L19: 11 | M19: 21 | N19: 38 | O19: 6
C20: 41 | D20: 2 | E20: 19 | F20: 29 | G20: 46 | H20: 7 | J20: 41 | K20: 2 | L20: 19 | M20: 29 | N20: 46 | O20: 7
A21: 1 | H21: 32 | I21: 42 | J21: 10 | K21: 27 | L21: 37 | M21: 5 | N21: 15 | O21: 32 | P21: 42 | Q21: 10 | R21: 27 | S21: 37 | T21: 5 | U21: 15
A22: 2 | G22: 40 | H22: 1 | I22: 18 | J22: 28 | K22: 45 | L22: 13 | M22: 23 | N22: 40 | O22: 1 | P22: 18 | Q22: 28 | R22: 45 | S22: 13 | T22: 23
A23: 3 | F23: 48 | G23: 9 | H23: 26 | I23: 36 | J23: 4 | K23: 14 | L23: 31 | M23: 48 | N23: 9 | O23: 26 | P23: 36 | Q23: 4 | R23: 14 | S23: 31
A24: 4 | E24: 0 | F24: 17 | G24: 34 | H24: 44 | I24: 12 | J24: 22 | K24: 39 | L24: 0 | M24: 17 | N24: 34 | O24: 44 | P24: 12 | Q24: 22 | R24: 39
A25: 5 | D25: 8 | E25: 25 | F25: 35 | G25: 3 | H25: 20 | I25: 30 | J25: 49 | K25: 8 | L25: 25 | M25: 35 | N25: 3 | O25: 20 | P25: 30 | Q25: 49
A26: 6 | C26: 16 | D26: 33 | E26: 43 | F26: 11 | G26: 21 | H26: 38 | I26: 6 | J26: 16 | K26: 33 | L26: 43 | M26: 11 | N26: 21 | O26: 38 | P26: 6
A27: 7 | B27: 24 | C27: 41 | D27: 2 | E27: 19 | F27: 29 | G27: 46 | H27: 7 | I27: 24 | J27: 41 | K27: 2 | L27: 19 | M27: 29 | N27: 46 | O27: 7
B28: 32 | C28: 42 | D28: 10 | E28: 27 | F28: 37 | G28: 5 | H28: 15 | I28: 32 | J28: 42 | K28: 10 | L28: 27 | M28: 37 | N28: 5 | O28: 15
B29: 40 | C29: 1 | D29: 18 | E29: 28 | F29: 45 | G29: 13 | I29: 40 | J29: 1 | K29: 18 | L29: 28 | M29: 45 | N29: 13
B30: 48 | C30: 9 | D30: 26 | E30: 36 | F30: 4 | I30: 48 | J30: 9 | K30: 26 | L30: 36 | M30: 4
B31: 0 | C31: 17 | D31: 34 | E31: 44 | I31: 0 | J31: 17 | K31: 34 | L31: 44
B32: 8 | C32: 25 | D32: 35 | I32: 8 | J32: 25 | K32: 35
B33: 16 | C33: 33 | I33: 16 | J33: 33
B34: 24 | I34: 24

Sheet Sheet2
A1: 32 | B1: 42 | C1: 10 | D1: 27 | E1: 37 | F1: 5 | G1: 15 | J1: 0 | K1: 2 | N1: 0 | O1: 7 | P1: 3
A2: 1 | B2: 18 | C2: 28 | D2: 45 | E2: 13 | F2: 23 | G2: 40 | J2: 3 | K2: 1 | N2: 6 | O2: 5 | P2: 2
A3: 26 | B3: 36 | C3: 4 | D3: 14 | E3: 31 | F3: 48 | G3: 9 | N3: 4 | O3: 1 | P3: 8
A4: 44 | B4: 12 | C4: 22 | D4: 39 | E4: 0 | F4: 17 | G4: 34
A5: 20 | B5: 30 | C5: 47 | D5: 8 | E5: 25 | F5: 35 | G5: 3
A6: 38 | B6: 6 | C6: 16 | D6: 33 | E6: 43 | F6: 11 | G6: 21
A7: 7 | B7: 24 | C7: 41 | D7: 2 | E7: 19 | F7: 29 | G7: 46
A10: =4*A1 -> 128 | B10: =4*B1 -> 168 | C10: =4*C1 -> 40 | D10: =4*D1 -> 108 | E10: =4*E1 -> 148 | F10: =4*F1 -> 20 | G10: =4*G1 -> 60 | H10: =A10+2 -> 130 | I10: =B10+2 -> 170 | J10: 42 | K10: 110 | L10: 150 | M10: 22 | N10: 62
A11: =4*A2 -> 4 | B11: =4*B2 -> 72 | C11: =4*C2 -> 112 | D11: =4*D2 -> 180 | E11: =4*E2 -> 52 | F11: =4*F2 -> 92 | G11: =4*G2 -> 160 | H11: =A11+2 -> 6 | I11: =B11+2 -> 74 | J11: =C11+2 -> 114 | K11: =D11+2 -> 182 | L11: =E11+2 -> 54 | M11: =F11+2 -> 94 | N11: =G11+2 -> 162
A12: =4*A3 -> 104 | B12: =4*B3 -> 144 | C12: =4*C3 -> 16 | D12: =4*D3 -> 56 | E12: =4*E3 -> 124 | F12: =4*F3 -> 192 | G12: =4*G3 -> 36 | H12: 106 | I12: 146 | J12: 18 | K12: 58 | L12: 126 | M12: 194 | N12: 38
A13: =4*A4 -> 176 | B13: =4*B4 -> 48 | C13: =4*C4 -> 88 | D13: =4*D4 -> 156 | E13: =4*E4 -> 0 | F13: =4*F4 -> 68 | G13: =4*G4 -> 136 | H13: 178 | I13: 50 | J13: 90 | K13: 158 | L13: 2 | M13: 70 | N13: 138
A14: =4*A5 -> 80 | B14: =4*B5 -> 120 | C14: =4*C5 -> 188 | D14: =4*D5 -> 32 | E14: =4*E5 -> 100 | F14: =4*F5 -> 140 | G14: =4*G5 -> 12 | H14: 82 | I14: 122 | J14: 190 | K14: 34 | L14: 102 | M14: 142 | N14: 14
A15: =4*A6 -> 152 | B15: =4*B6 -> 24 | C15: =4*C6 -> 64 | D15: =4*D6 -> 132 | E15: =4*E6 -> 172 | F15: =4*F6 -> 44 | G15: =4*G6 -> 84 | H15: 154 | I15: 26 | J15: 66 | K15: 134 | L15: 174 | M15: 46 | N15: 86
A16: =4*A7 -> 28 | B16: =4*B7 -> 96 | C16: =4*C7 -> 164 | D16: =4*D7 -> 8 | E16: =4*E7 -> 76 | F16: =4*F7 -> 116 | G16: =4*G7 -> 184 | H16: 30 | I16: 98 | J16: 166 | K16: 10 | L16: 78 | M16: 118 | N16: 186
A17: =A10+1 -> 129 | B17: =B10+1 -> 169 | C17: 41 | D17: 109 | E17: 149 | F17: 21 | G17: 61 | H17: 131 | I17: 171 | J17: 43 | K17: 111 | L17: 151 | M17: 23 | N17: 63
A18: =A11+1 -> 5 | B18: 73 | C18: 113 | D18: 181 | E18: 53 | F18: 93 | G18: 161 | H18: 7 | I18: 75 | J18: 115 | K18: 183 | L18: 55 | M18: 95 | N18: 163
A19: =A12+1 -> 105 | B19: 145 | C19: 17 | D19: 57 | E19: 125 | F19: 193 | G19: 37 | H19: 107 | I19: 147 | J19: 19 | K19: 59 | L19: 127 | M19: 195 | N19: 39
A20: =A13+1 -> 177 | B20: 49 | C20: 89 | D20: 157 | E20: 1 | F20: 69 | G20: 137 | H20: 179 | I20: 51 | J20: 91 | K20: 159 | L20: 3 | M20: 71 | N20: 139
A21: =A14+1 -> 81 | B21: 121 | C21: 189 | D21: 33 | E21: 101 | F21: 141 | G21: 13 | H21: 83 | I21: 123 | J21: 191 | K21: 35 | L21: 103 | M21: 143 | N21: 15
A22: =A15+1 -> 153 | B22: 25 | C22: 65 | D22: 133 | E22: 173 | F22: 45 | G22: 85 | H22: 155 | I22: 27 | J22: 67 | K22: 135 | L22: 175 | M22: 47 | N22: 87
A23: =A16+1 -> 29 | B23: 97 | C23: 165 | D23: 9 | E23: 77 | F23: 117 | G23: 185 | H23: 31 | I23: 99 | J23: 167 | K23: 11 | L23: 79 | M23: 119 | N23: 187
A26: =9*A1 -> 288 | B26: =9*B1 -> 378 | C26: 90 | D26: 243 | E26: 333 | F26: 45 | G26: 135 | H26: =A26+7 -> 295 | I26: =B26+7 -> 385 | J26: 97 | K26: 250 | L26: 340 | M26: 52 | N26: 142 | O26: =A26+3 -> 291 | P26: =B26+3 -> 381 | Q26: 93 | R26: 246 | S26: 336 | T26: 48 | U26: 138
A27: =9*A2 -> 9 | B27: 162 | C27: 252 | D27: 405 | E27: 117 | F27: 207 | G27: 360 | H27: =A27+7 -> 16 | I27: =B27+7 -> 169 | J27: =C27+7 -> 259 | K27: =D27+7 -> 412 | L27: =E27+7 -> 124 | M27: =F27+7 -> 214 | N27: =G27+7 -> 367 | O27: =A27+3 -> 12 | P27: =B27+3 -> 165 | Q27: =C27+3 -> 255 | R27: =D27+3 -> 408 | S27: =E27+3 -> 120 | T27: =F27+3 -> 210 | U27: =G27+3 -> 363
A28: =9*A3 -> 234 | B28: 324 | C28: 36 | D28: 126 | E28: 279 | F28: 432 | G28: 81 | H28: 241 | I28: 331 | J28: 43 | K28: 133 | L28: 286 | M28: 439 | N28: 88 | O28: 237 | P28: 327 | Q28: 39 | R28: 129 | S28: 282 | T28: 435 | U28: 84
A29: =9*A4 -> 396 | B29: 108 | C29: 198 | D29: 351 | E29: 0 | F29: 153 | G29: 306 | H29: 403 | I29: 115 | J29: 205 | K29: 358 | L29: 7 | M29: 160 | N29: 313 | O29: 399 | P29: 111 | Q29: 201 | R29: 354 | S29: 3 | T29: 156 | U29: 309
A30: =9*A5 -> 180 | B30: 270 | C30: 423 | D30: 72 | E30: 225 | F30: 315 | G30: 27 | H30: 187 | I30: 277 | J30: 430 | K30: 79 | L30: 232 | M30: 322 | N30: 34 | O30: 183 | P30: 273 | Q30: 426 | R30: 75 | S30: 228 | T30: 318 | U30: 30
A31: =9*A6 -> 342 | B31: 54 | C31: 144 | D31: 297 | E31: 387 | F31: 99 | G31: 189 | H31: 349 | I31: 61 | J31: 151 | K31: 304 | L31: 394 | M31: 106 | N31: 196 | O31: 345 | P31: 57 | Q31: 147 | R31: 300 | S31: 390 | T31: 102 | U31: 192
A32: =9*A7 -> 63 | B32: 216 | C32: 369 | D32: 18 | E32: 171 | F32: 261 | G32: 414 | H32: 70 | I32: 223 | J32: 376 | K32: 25 | L32: 178 | M32: 268 | N32: 421 | O32: 66 | P32: 219 | Q32: 372 | R32: 21 | S32: 174 | T32: 264 | U32: 417
A33: =A26+6 -> 294 | B33: =B26+6 -> 384 | C33: 96 | D33: 249 | E33: 339 | F33: 51 | G33: 141 | H33: =A26+5 -> 293 | I33: =B26+5 -> 383 | J33: 95 | K33: 248 | L33: 338 | M33: 50 | N33: 140 | O33: =A26+2 -> 290 | P33: =B26+2 -> 380 | Q33: 92 | R33: 245 | S33: 335 | T33: 47 | U33: 137
A34: =A27+6 -> 15 | B34: 168 | C34: 258 | D34: 411 | E34: 123 | F34: 213 | G34: 366 | H34: =A27+5 -> 14 | I34: =B27+5 -> 167 | J34: =C27+5 -> 257 | K34: =D27+5 -> 410 | L34: =E27+5 -> 122 | M34: =F27+5 -> 212 | N34: =G27+5 -> 365 | O34: =A27+2 -> 11 | P34: =B27+2 -> 164 | Q34: =C27+2 -> 254 | R34: =D27+2 -> 407 | S34: =E27+2 -> 119 | T34: =F27+2 -> 209 | U34: =G27+2 -> 362
A35: =A28+6 -> 240 | B35: 330 | C35: 42 | D35: 132 | E35: 285 | F35: 438 | G35: 87 | H35: 239 | I35: 329 | J35: 41 | K35: 131 | L35: 284 | M35: 437 | N35: 86 | O35: 236 | P35: 326 | Q35: 38 | R35: 128 | S35: 281 | T35: 434 | U35: 83
A36: =A29+6 -> 402 | B36: 114 | C36: 204 | D36: 357 | E36: 6 | F36: 159 | G36: 312 | H36: 401 | I36: 113 | J36: 203 | K36: 356 | L36: 5 | M36: 158 | N36: 311 | O36: 398 | P36: 110 | Q36: 200 | R36: 353 | S36: 2 | T36: 155 | U36: 308
A37: =A30+6 -> 186 | B37: 276 | C37: 429 | D37: 78 | E37: 231 | F37: 321 | G37: 33 | H37: 185 | I37: 275 | J37: 428 | K37: 77 | L37: 230 | M37: 320 | N37: 32 | O37: 182 | P37: 272 | Q37: 425 | R37: 74 | S37: 227 | T37: 317 | U37: 29
A38: =A31+6 -> 348 | B38: 60 | C38: 150 | D38: 303 | E38: 393 | F38: 105 | G38: 195 | H38: 347 | I38: 59 | J38: 149 | K38: 302 | L38: 392 | M38: 104 | N38: 194 | O38: 344 | P38: 56 | Q38: 146 | R38: 299 | S38: 389 | T38: 101 | U38: 191
A39: =A32+6 -> 69 | B39: 222 | C39: 375 | D39: 24 | E39: 177 | F39: 267 | G39: 420 | H39: 68 | I39: 221 | J39: 374 | K39: 23 | L39: 176 | M39: 266 | N39: 419 | O39: 65 | P39: 218 | Q39: 371 | R39: 20 | S39: 173 | T39: 263 | U39: 416
A40: =A26+4 -> 292 | B40: =B26+4 -> 382 | C40: 94 | D40: 247 | E40: 337 | F40: 49 | G40: 139 | H40: =A26+1 -> 289 | I40: =B26+1 -> 379 | J40: 91 | K40: 244 | L40: 334 | M40: 46 | N40: 136 | O40: =A26+8 -> 296 | P40: =B26+8 -> 386 | Q40: 98 | R40: 251 | S40: 341 | T40: 53 | U40: 143
A41: =A27+4 -> 13 | B41: 166 | C41: 256 | D41: 409 | E41: 121 | F41: 211 | G41: 364 | H41: =A27+1 -> 10 | I41: =B27+1 -> 163 | J41: =C27+1 -> 253 | K41: =D27+1 -> 406 | L41: =E27+1 -> 118 | M41: =F27+1 -> 208 | N41: =G27+1 -> 361 | O41: =A27+8 -> 17 | P41: =B27+8 -> 170 | Q41: =C27+8 -> 260 | R41: =D27+8 -> 413 | S41: =E27+8 -> 125 | T41: =F27+8 -> 215 | U41: =G27+8 -> 368
A42: =A28+4 -> 238 | B42: 328 | C42: 40 | D42: 130 | E42: 283 | F42: 436 | G42: 85 | H42: 235 | I42: 325 | J42: 37 | K42: 127 | L42: 280 | M42: 433 | N42: 82 | O42: 242 | P42: 332 | Q42: 44 | R42: 134 | S42: 287 | T42: 440 | U42: 89
A43: =A29+4 -> 400 | B43: 112 | C43: 202 | D43: 355 | E43: 4 | F43: 157 | G43: 310 | H43: 397 | I43: 109 | J43: 199 | K43: 352 | L43: 1 | M43: 154 | N43: 307 | O43: 404 | P43: 116 | Q43: 206 | R43: 359 | S43: 8 | T43: 161 | U43: 314
A44: =A30+4 -> 184 | B44: 274 | C44: 427 | D44: 76 | E44: 229 | F44: 319 | G44: 31 | H44: 181 | I44: 271 | J44: 424 | K44: 73 | L44: 226 | M44: 316 | N44: 28 | O44: 188 | P44: 278 | Q44: 431 | R44: 80 | S44: 233 | T44: 323 | U44: 35
A45: =A31+4 -> 346 | B45: 58 | C45: 148 | D45: 301 | E45: 391 | F45: 103 | G45: 193 | H45: 343 | I45: 55 | J45: 145 | K45: 298 | L45: 388 | M45: 100 | N45: 190 | O45: 350 | P45: 62 | Q45: 152 | R45: 305 | S45: 395 | T45: 107 | U45: 197
A46: =A32+4 -> 67 | B46: 220 | C46: 373 | D46: 22 | E46: 175 | F46: 265 | G46: 418 | H46: 64 | I46: 217 | J46: 370 | K46: 19 | L46: 172 | M46: 262 | N46: 415 | O46: 71 | P46: 224 | Q46: 377 | R46: 26 | S46: 179 | T46: 269 | U46: 422
